fUSD/lending_fUSD_20241128
["ID","MTS","AMOUNT","RATE_DAILY","PERIOD"]
[343633489,1732764633989,-500.0,9.897e-05,2]
[343633490,1732764633999,-500.0,9.897e-05,2]
[343633491,1732764634009,-500.0,9.897e-05,2]
[343633492,1732764634019,-500.0,9.897e-05,2]
[343633493,1732764634030,-353.90560215,9.897e-05,2]
[343633494,1732764634040,-500.0,9.897e-05,2]
[343633495,1732764634050,-500.0,9.897e-05,2]
[343633496,1732764634060,-500.0,9.897e-05,2]
[343633497,1732764634070,-561.32,9.897e-05,2]
[343633498,1732764634080,-200.41,9.898e-05,2]
[343633499,1732764634090,-513.56591525,9.898e-05,2]
[343633500,1732764634100,-500.0,9.898e-05,2]
[343633501,1732764634110,-500.0,9.898e-05,2]
[343633502,1732764634120,-500.0,9.898e-05,2]
[343633503,1732764634129,-536.0110368,9.898e-05,2]
[343633504,1732764634138,-150.0,9.898e-05,2]
[343633505,1732764634148,-500.0,9.898e-05,2]
[343633506,1732764634158,-517.10425947,9.898e-05,2]
[343633507,1732764634169,-322.51895731,9.898e-05,2]
[343633508,1732764634178,-500.0,9.898e-05,2]
[343633509,1732764634188,-500.0,9.898e-05,2]
[343633510,1732764634199,-500.0,9.898e-05,2]
[343633511,1732764634210,-793.38,9.898e-05,2]
[343633512,1732764634220,-500.0,9.898e-05,2]
[343633513,1732764634229,-286.92535304,9.898e-05,2]
[343633514,1732764634239,-500.0,9.898e-05,2]
[343633515,1732764634249,-500.0,9.898e-05,2]
[343633516,1732764634259,-500.0,9.898e-05,2]
[343633517,1732764634269,-500.0,9.898e-05,2]
[343633518,1732764634281,-500.0,9.898e-05,2]
[343633519,1732764634291,-500.0,9.898e-05,2]
[343633520,1732764634300,-500.0,9.898e-05,2]
[343633521,1732764634571,-484.24,9.898e-05,2]
[343633522,1732764634582,-500.0,9.898e-05,2]
[343633523,1732764634592,-500.0,9.898e-05,2]
[343633524,1732764634603,-592.53,9.898e-05,2]
[343633525,1732764634613,-500.0,9.898e-05,2]
[343633526,1732764634622,-500.0,9.898e-05,2]
[343633527,1732764634632,-591.07,9.898e-05,2]
[343633528,1732764634643,-500.0,9.898e-05,2]
[343633529,1732764634653,-500.0,9.898e-05,2]
[343633530,1732764634663,-500.0,9.898e-05,2]
[343633531,1732764634672,-500.0,9.898e-05,2]
[343633532,1732764634682,-500.0,9.898e-05,2]
[343633533,1732764634691,-500.0,9.898e-05,2]
[343633534,1732764634701,-500.0,9.898e-05,2]
[343633535,1732764634710,-500.0,9.898e-05,2]
[343633536,1732764634719,-500.0,9.898e-05,2]
[343633537,1732764634729,-500.0,9.898e-05,2]
[343633538,1732764634739,-500.0,9.898e-05,2]
[343633539,1732764634748,-617.04,9.898e-05,2]
[343633540,1732764634757,-500.0,9.898e-05,2]
[343633541,1732764634767,-500.0,9.898e-05,2]
[343633542,1732764634777,-500.0,9.898e-05,2]
[343633543,1732764634787,-1156.85,9.898e-05,2]
[343633544,1732764634796,-500.0,9.898e-05,2]
[343633545,1732764634806,-500.0,9.898e-05,2]
[343633546,1732764634815,-866.26,9.898e-05,2]
[343633547,1732764634825,-935.98,9.898e-05,2]
[343633548,1732764634835,-500.0,9.898e-05,2]
[343633549,1732764634845,-500.0,9.898e-05,2]
[343633550,1732764634855,-500.0,9.898e-05,2]
[343633551,1732764634865,-500.0,9.898e-05,2]
[343633552,1732764634875,-569.51511742,9.898e-05,2]
[343633553,1732764634884,-500.0,9.898e-05,2]
[343633554,1732764634894,-500.0,9.898e-05,2]
[343633555,1732764634904,-500.0,9.898e-05,2]
[343633556,1732764634914,-567.47,9.898e-05,2]
[343633557,1732764634924,-500.0,9.898e-05,2]
[343633558,1732764634933,-500.0,9.898e-05,2]
[343633559,1732764634944,-500.0,9.898e-05,2]
[343633560,1732764634954,-500.0,9.898e-05,2]
[343633561,1732764634964,-500.0,9.898e-05,2]
[343633562,1732764634973,-500.0,9.898e-05,2]
[343633563,1732764634983,-958.52,9.898e-05,2]
[343633564,1732764634992,-888.28,9.898e-05,2]
[343633565,1732764635001,-777.53,9.898e-05,2]
[343633566,1732764635010,-500.0,9.898e-05,2]
[343633567,1732764635020,-500.0,9.898e-05,2]
[343633568,1732764635031,-500.0,9.898e-05,2]
[343633569,1732764635040,-500.0,9.898e-05,2]
[343633570,1732764635050,-500.0,9.898e-05,2]
[343633571,1732764635059,-500.0,9.898e-05,2]
[343633572,1732764635068,-500.0,9.898e-05,2]
[343633573,1732764635078,-230.13470256,9.898e-05,2]
[343633574,1732764635087,-500.0,9.898e-05,2]
[343633575,1732764635097,-500.0,9.898e-05,2]
[343633576,1732764635107,-500.0,9.898e-05,2]
[343633577,1732764635116,-518.98,9.898e-05,2]
[343633578,1732764635125,-500.0,9.898e-05,2]
[343633579,1732764635134,-500.0,9.898e-05,2]
[343633580,1732764635144,-500.0,9.898e-05,2]
[343633581,1732764635153,-500.0,9.898e-05,2]
[343633582,1732764635162,-500.0,9.898e-05,2]
[343633583,1732764635172,-1052.23,9.898e-05,2]
[343633584,1732764635182,-500.0,9.898e-05,2]
[343633585,1732764635192,-500.0,9.898e-05,2]
[343633586,1732764635202,-488.84901613,9.898e-05,2]
[343633587,1732764635212,-576.48,9.898e-05,2]
[343633588,1732764635222,-500.0,9.898e-05,2]
[343633589,1732764635231,-857.17,9.898e-05,2]
[343633590,1732764635241,-500.0,9.898e-05,2]
[343633591,1732764635250,-500.0,9.898e-05,2]
[343633592,1732764635260,-500.0,9.898e-05,2]
[343633593,1732764635269,-500.0,9.898e-05,2]
[343633594,1732764635281,-526.75,9.898e-05,2]
[343633595,1732764635290,-500.0,9.898e-05,2]
[343633596,1732764635299,-500.0,9.898e-05,2]
[343633597,1732764635308,-500.0,9.898e-05,2]
[343633598,1732764635318,-501.28362276,9.898e-05,2]
[343633599,1732764635327,-340.53493546,9.898e-05,2]
[343633600,1732764635336,-500.0,9.898e-05,2]
[343633601,1732764635346,-500.0,9.898e-05,2]
[343633602,1732764635355,-198.10849651,9.898e-05,2]
[343633603,1732764635364,-500.0,9.898e-05,2]
[343633604,1732764635373,-500.0,9.898e-05,2]
[343633605,1732764635383,-500.0,9.898e-05,2]
[343633606,1732764635392,-500.0,9.898e-05,2]
[343633607,1732764635401,-500.0,9.898e-05,2]
[343633608,1732764635411,-500.0,9.898e-05,2]
[343633609,1732764635420,-500.0,9.898e-05,2]
[343633610,1732764635429,-500.0,9.898e-05,2]
[343633611,1732764635439,-500.0,9.898e-05,2]
[343633612,1732764635448,-500.0,9.898e-05,2]
[343633613,1732764635458,-851.58,9.898e-05,2]
[343633614,1732764635467,-500.0,9.898e-05,2]
[343633615,1732764635476,-500.0,9.898e-05,2]
[343633616,1732764635486,-500.0,9.898e-05,2]
[343633617,1732764635495,-952.64,9.898e-05,2]
[343633618,1732764635504,-500.0,9.898e-05,2]
[343633619,1732764635513,-500.0,9.898e-05,2]
[343633620,1732764635524,-460.8909,9.898e-05,2]
[343633621,1732764635538,-36443.0327,9.898e-05,2]
[343633622,1732764635548,-500.0,9.899e-05,2]
[343633623,1732764635563,-502.31222988,9.899e-05,2]
[343633624,1732764635572,-500.0,9.899e-05,2]
[343633625,1732764635582,-500.0,9.899e-05,2]
[343633626,1732764635591,-286.57746754,9.899e-05,2]
[343633627,1732764635602,-500.0,9.899e-05,2]
[343633628,1732764635611,-500.0,9.899e-05,2]
[343633629,1732764635620,-178.61495313,9.899e-05,2]
[343633630,1732764635630,-502.02487431,9.899e-05,2]
[343633631,1732764635640,-507.1940494,9.899e-05,2]
[343633632,1732764635649,-500.7676925,9.899e-05,2]
[343633633,1732764635658,-504.06342507,9.899e-05,2]
[343633634,1732764635668,-500.0,9.899e-05,2]
[343633635,1732764635677,-500.0,9.899e-05,2]
[343633636,1732764635686,-500.0,9.899e-05,2]
[343633637,1732764635695,-500.0,9.899e-05,2]
[343633638,1732764635704,-500.0,9.899e-05,2]
[343633639,1732764635713,-500.0,9.899e-05,2]
[343633640,1732764635722,-789.87,9.899e-05,2]
[343633641,1732764635731,-501.96507898,9.899e-05,2]
[343633642,1732764635740,-500.0,9.899e-05,2]
[343633643,1732764635750,-500.0,9.899e-05,2]
[343633644,1732764635759,-500.0,9.899e-05,2]
[343633645,1732764635768,-500.0,9.899e-05,2]
[343633646,1732764635780,-500.0,9.899e-05,2]
[343633647,1732764635789,-500.0,9.899e-05,2]
[343633648,1732764635799,-508.00226381,9.899e-05,2]
[343633649,1732764635809,-500.0,9.899e-05,2]
[343633650,1732764635819,-500.0,9.899e-05,2]
[343633651,1732764635828,-500.0,9.899e-05,2]
[343633652,1732764635837,-500.0,9.899e-05,2]
[343633653,1732764635846,-500.0,9.899e-05,2]
[343633654,1732764635856,-500.0,9.899e-05,2]
[343633655,1732764635865,-500.0,9.899e-05,2]
[343633656,1732764635875,-500.39389098,9.899e-05,2]
[343633657,1732764635884,-500.0,9.899e-05,2]
[343633658,1732764635893,-500.0,9.899e-05,2]
[343633659,1732764635903,-500.0,9.899e-05,2]
[343633660,1732764635913,-500.0,9.899e-05,2]
[343633661,1732764635922,-500.0,9.899e-05,2]
[343633662,1732764635931,-500.0,9.899e-05,2]
[343633663,1732764635941,-500.0,9.899e-05,2]
[343633664,1732764635950,-500.0,9.899e-05,2]
[343633665,1732764635959,-500.0,9.899e-05,2]
[343633666,1732764635970,-500.0,9.899e-05,2]
[343633667,1732764635980,-500.0,9.899e-05,2]
[343633668,1732764635989,-500.0,9.899e-05,2]
[343633669,1732764635999,-500.0,9.899e-05,2]
[343633670,1732764636008,-505.43453527,9.899e-05,2]
[343633671,1732764636017,-514.60385838,9.899e-05,2]
[343633672,1732764636026,-501.66897533,9.899e-05,2]
[343633673,1732764636042,-500.0,9.899e-05,2]
[343633674,1732764636051,-500.0,9.899e-05,2]
[343633675,1732764636060,-500.0,9.899e-05,2]
[343633676,1732764636070,-500.0,9.899e-05,2]
[343633677,1732764636079,-500.0,9.899e-05,2]
[343633678,1732764636089,-500.0,9.899e-05,2]
[343633679,1732764636099,-1265.82,9.899e-05,2]
[343633680,1732764636108,-500.0,9.899e-05,2]
[343633681,1732764636118,-500.0,9.899e-05,2]
[343633682,1732764636127,-500.0,9.899e-05,2]
[343633683,1732764636136,-500.47569877,9.899e-05,2]
[343633684,1732764636145,-500.0,9.899e-05,2]
[343633685,1732764636155,-594.86,9.899e-05,2]
[343633686,1732764636165,-505.13164516,9.899e-05,2]
[343633687,1732764636174,-500.0,9.899e-05,2]
[343633688,1732764636184,-514.0030591,9.899e-05,2]
[343633689,1732764636193,-500.0,9.899e-05,2]
[343633690,1732764636203,-500.0,9.899e-05,2]
[343633691,1732764636212,-500.0,9.899e-05,2]
[343633692,1732764636221,-500.0,9.899e-05,2]
[343633693,1732764636230,-500.0,9.899e-05,2]
[343633694,1732764636239,-500.0,9.899e-05,2]
[343633695,1732764636248,-500.0,9.899e-05,2]
[343633696,1732764636259,-500.0,9.899e-05,2]
[343633697,1732764636268,-500.0,9.899e-05,2]
[343633698,1732764636279,-500.0,9.899e-05,2]
[343633699,1732764636288,-500.0,9.899e-05,2]
[343633700,1732764636297,-500.0,9.899e-05,2]
[343633701,1732764636306,-500.0,9.899e-05,2]
[343633702,1732764636315,-500.0,9.899e-05,2]
[343633703,1732764636325,-500.0,9.899e-05,2]
[343633704,1732764636334,-500.0,9.899e-05,2]
[343633705,1732764636343,-500.0,9.899e-05,2]
[343633706,1732764636352,-500.0,9.899e-05,2]
[343633707,1732764636361,-524.01744965,9.899e-05,2]
[343633708,1732764636371,-500.0,9.899e-05,2]
[343633709,1732764636380,-500.0,9.899e-05,2]
[343633710,1732764636390,-500.0,9.899e-05,2]
[343633711,1732764636399,-500.0,9.899e-05,2]
[343633712,1732764636409,-506.37131974,9.899e-05,2]
[343633713,1732764636419,-500.0,9.899e-05,2]
[343633714,1732764636428,-500.0,9.899e-05,2]
[343633715,1732764636437,-500.0,9.899e-05,2]
[343633716,1732764636446,-500.0,9.899e-05,2]
[343633717,1732764636455,-500.0,9.899e-05,2]
[343633718,1732764636464,-500.0,9.899e-05,2]
[343633719,1732764636474,-499.45898434,9.899e-05,2]
[343633720,1732764636484,-500.0,9.899e-05,2]
[343633721,1732764636493,-500.0,9.899e-05,2]
[343633722,1732764636502,-500.0,9.899e-05,2]
[343633723,1732764636512,-500.0,9.899e-05,2]
[343633724,1732764636521,-607.00499998,9.899e-05,2]
[343633725,1732764636533,-185.01583151,9.899e-05,2]
[343633726,1732764636543,-500.0,9.899e-05,2]
[343633727,1732764636552,-500.0,9.899e-05,2]
[343633728,1732764636563,-500.0,9.899e-05,2]
[343633729,1732764636572,-500.0,9.899e-05,2]
[343633730,1732764636581,-500.0,9.899e-05,2]
[343633731,1732764636591,-500.0,9.899e-05,2]
[343633732,1732764636600,-500.0,9.899e-05,2]
[343633733,1732764636610,-500.0,9.899e-05,2]
[343633734,1732764636619,-500.0,9.899e-05,2]
[343633735,1732764636628,-502.65408886,9.899e-05,2]
[343633736,1732764636639,-150.0,9.899e-05,2]
[343633737,1732764636648,-503.90433483,9.899e-05,2]
[343633738,1732764636657,-500.0,9.899e-05,2]
[343633739,1732764636666,-502.23863936,9.899e-05,2]
[343633740,1732764636675,-500.0,9.899e-05,2]
[343633741,1732764636685,-500.0,9.899e-05,2]
[343633742,1732764636694,-500.0,9.899e-05,2]
[343633743,1732764636704,-500.0,9.899e-05,2]
[343633744,1732764636714,-500.0,9.899e-05,2]
[343633745,1732764636723,-500.0,9.899e-05,2]
[343633746,1732764636733,-545.25,9.899e-05,2]
[343633747,1732764636742,-500.0,9.899e-05,2]
[343633748,1732764636751,-500.0,9.899e-05,2]
[343633749,1732764636761,-500.0,9.899e-05,2]
[343633750,1732764636770,-500.0,9.899e-05,2]
[343633751,1732764636782,-500.0,9.899e-05,2]
[343633752,1732764636791,-500.0,9.899e-05,2]
[343633753,1732764636800,-500.0,9.899e-05,2]
[343633754,1732764636810,-500.0,9.899e-05,2]
[343633755,1732764636821,-500.0,9.899e-05,2]
[343633756,1732764636831,-500.0,9.899e-05,2]
[343633757,1732764636840,-500.0,9.899e-05,2]
[343633758,1732764636850,-150.0,9.9e-05,2]
[343633759,1732764636859,-4013.035834,9.9e-05,2]
[343633760,1732764636869,-150.0,9.901e-05,2]
[343633761,1732764636878,-250.62,9.903e-05,2]
[343633762,1732764636887,-150.0,9.904e-05,2]
[343633763,1732764636896,-248.10139249,9.909e-05,2]
[343633764,1732764636905,-150.0,9.909e-05,2]
[343633765,1732764636914,-150.0,9.911e-05,2]
[343633766,1732764636924,-150.0,9.916e-05,2]
[343633767,1732764636934,-150.0,9.917e-05,2]
[343633768,1732764636944,-150.0,9.917e-05,2]
[343633769,1732764636953,-150.0,9.926e-05,2]
[343633770,1732764636963,-150.0,9.929e-05,2]
[343633771,1732764636973,-150.0,9.933e-05,2]
[343633772,1732764636983,-150.0,9.943e-05,2]
[343633773,1732764636992,-150.0,9.943e-05,2]
[343633774,1732764637000,-150.0,9.943e-05,2]
[343633775,1732764637010,-150.0,9.943e-05,2]
[343633776,1732764637019,-150.0,9.946e-05,2]
[343633777,1732764637029,-150.0,9.952e-05,2]
[343633778,1732764637038,-150.0,9.954e-05,2]
[343633779,1732764637047,-150.0,9.954e-05,2]
[343633780,1732764637057,-150.0,9.956e-05,2]
[343633781,1732764637066,-150.0,9.958e-05,2]
[343633782,1732764637075,-150.0,9.967e-05,2]
[343633783,1732764637085,-150.0,9.967e-05,2]
[343633784,1732764637094,-150.0,9.967e-05,2]
[343633785,1732764637103,-150.0,9.969e-05,2]
[343633786,1732764637113,-150.0,9.972e-05,2]
[343633787,1732764637122,-500.0,9.972e-05,2]
[343633788,1732764637131,-448.13,9.972e-05,2]
[343633789,1732764637141,-500.0,9.972e-05,2]
[343633790,1732764637150,-500.0,9.972e-05,2]
[343633791,1732764637159,-500.0,9.972e-05,2]
[343633792,1732764637168,-500.0,9.972e-05,2]
[343633793,1732764637177,-500.0,9.972e-05,2]
[343633794,1732764637186,-33681.02385057,9.973e-05,2]
[343633795,1732764637226,-25645.51827096,9.973e-05,2]
[343633796,1732764637237,-1428.20139994,9.973e-05,2]
[343633797,1732764637275,-4767.13483188,9.973e-05,2]
[343633800,1732764638262,-2526.31919787,9.973e-05,2]
[343633801,1732764638648,-768.6709483,9.973e-05,2]
[343633802,1732764638661,-757.86117847,9.973e-05,2]
[343633803,1732764638805,-589.99947364,9.973e-05,2]
[343633819,1732764644739,-76542.23208703,9.973e-05,2]
[343633824,1732764644918,-3209.23778868,9.973e-05,2]
[343633825,1732764644929,-1640.5274,9.973e-05,2]
[343633826,1732764645148,-12848.10139249,9.973e-05,2]
[343633827,1732764645161,-514.17218017,9.973e-05,2]
[343633828,1732764645171,-500.0,9.973e-05,2]
[343633829,1732764645181,-150.0,9.974e-05,2]
[343633830,1732764645192,-150.0,9.979e-05,2]
[343633831,1732764645202,-500.0,9.988e-05,2]
[343633832,1732764645212,-500.0,9.988e-05,2]
[343633834,1732764645222,-624.78,9.988e-05,2]
[343633836,1732764645233,-526.75,9.988e-05,2]
[343633838,1732764645244,-500.0,9.988e-05,2]
[343633840,1732764645254,-500.0,9.988e-05,2]
[343633842,1732764645265,-500.0,9.988e-05,2]
[343633844,1732764645276,-314.71296831,9.988e-05,2]
[343633846,1732764645292,-500.0,9.988e-05,2]
[343633847,1732764645302,-500.0,9.988e-05,2]
[343633848,1732764645315,-851.58,9.988e-05,2]
[343633849,1732764645327,-500.0,9.988e-05,2]
[343633850,1732764645337,-500.0,9.988e-05,2]
[343633851,1732764645347,-952.64,9.988e-05,2]
[343633852,1732764645357,-500.0,9.989e-05,2]
[343633853,1732764645368,-500.0,9.989e-05,2]
[343633854,1732764645379,-500.0,9.989e-05,2]
[343633855,1732764645389,-1110.86,9.989e-05,2]
[343633856,1732764645400,-500.0,9.989e-05,2]
[343633857,1732764645411,-500.0,9.989e-05,2]
[343633858,1732764645421,-500.0,9.989e-05,2]
[343633859,1732764645431,-500.0,9.989e-05,2]
[343633860,1732764645441,-500.0,9.989e-05,2]
[343633861,1732764645451,-500.0,9.989e-05,2]
[343633862,1732764645461,-500.0,9.989e-05,2]
[343633863,1732764645471,-500.0,9.989e-05,2]
[343633864,1732764645481,-1043.63,9.989e-05,2]
[343633865,1732764645492,-500.0,9.989e-05,2]
[343633866,1732764645502,-500.0,9.989e-05,2]
[343633867,1732764645512,-500.0,9.989e-05,2]
[343633868,1732764645523,-500.0,9.989e-05,2]
[343633869,1732764645533,-500.0,9.989e-05,2]
[343633870,1732764645545,-500.0,9.989e-05,2]
[343633871,1732764645555,-1724.35,9.989e-05,2]
[343633872,1732764645566,-4783.39,9.989e-05,2]
[343633873,1732764645579,-500.0,9.989e-05,2]
[343633874,1732764645589,-500.0,9.989e-05,2]
[343633875,1732764645598,-500.0,9.989e-05,2]
[343633876,1732764645608,-500.0,9.989e-05,2]
[343633877,1732764645619,-561.11,9.989e-05,2]
[343633878,1732764645629,-500.0,9.989e-05,2]
[343633879,1732764645638,-500.0,9.989e-05,2]
[343633880,1732764645649,-500.0,9.989e-05,2]
[343633881,1732764645658,-500.0,9.989e-05,2]
[343633882,1732764645668,-500.0,9.989e-05,2]
[343633883,1732764645677,-500.0,9.989e-05,2]
[343633884,1732764645687,-589.68,9.989e-05,2]
[343633885,1732764645696,-1304.79,9.989e-05,2]
[343633886,1732764645706,-768.96,9.989e-05,2]
[343633887,1732764645715,-500.0,9.989e-05,2]
[343633888,1732764645725,-500.0,9.989e-05,2]
[343633889,1732764645735,-1308.46,9.989e-05,2]
[343633890,1732764645745,-500.0,9.989e-05,2]
[343633891,1732764645754,-1311.75,9.989e-05,2]
[343633892,1732764645764,-901.56,9.989e-05,2]
[343633893,1732764645775,-1185.53,9.989e-05,2]
[343633894,1732764645788,-500.0,9.989e-05,2]
[343633895,1732764645797,-500.0,9.989e-05,2]
[343633896,1732764645807,-500.0,9.989e-05,2]
[343633897,1732764645816,-500.0,9.989e-05,2]
[343633898,1732764645826,-563.14,9.989e-05,2]
[343633899,1732764645836,-500.0,9.989e-05,2]
[343633900,1732764645845,-500.0,9.989e-05,2]
[343633901,1732764645855,-500.0,9.989e-05,2]
[343633902,1732764645864,-500.0,9.989e-05,2]
[343633903,1732764645874,-500.0,9.989e-05,2]
[343633904,1732764645885,-500.0,9.989e-05,2]
[343633905,1732764645895,-457.7,9.989e-05,2]
[343633906,1732764645905,-500.0,9.989e-05,2]
[343633907,1732764645915,-500.0,9.989e-05,2]
[343633908,1732764645924,-500.0,9.989e-05,2]
[343633909,1732764645934,-500.0,9.989e-05,2]
[343633910,1732764645944,-500.0,9.989e-05,2]
[343633911,1732764645954,-500.0,9.989e-05,2]
[343633912,1732764645964,-328.13,9.989e-05,2]
[343633913,1732764645973,-500.0,9.989e-05,2]
[343633914,1732764645983,-150.0,9.99e-05,2]
[343633915,1732764645992,-6342.49603085,9.99e-05,2]
[343633916,1732764646001,-6342.49603079,9.99e-05,2]
[343633917,1732764646010,-6342.49603079,9.99e-05,2]
[343633918,1732764646020,-6342.49603079,9.99e-05,2]
[343633919,1732764646030,-6342.49603079,9.99e-05,2]
[343633920,1732764646043,-6342.49603079,9.99e-05,2]
[343633921,1732764646053,-6342.49603079,9.99e-05,2]
[343633922,1732764646063,-6342.49603079,9.99e-05,2]
[343633923,1732764646072,-6342.49603079,9.99e-05,2]
[343633924,1732764646082,-150.0,9.992e-05,2]
[343633925,1732764646092,-150.0,9.995e-05,2]
[343633926,1732764646101,-1136.6697921,9.995e-05,2]
[343633927,1732764646110,-1288.8239741,9.995e-05,2]
[343633928,1732764646120,-2001.6784108,9.995e-05,2]
[343633929,1732764646129,-556.98,9.996e-05,2]
[343633931,1732764646139,-500.0,9.996e-05,2]
[343633932,1732764646148,-500.0,9.996e-05,2]
[343633934,1732764646158,-500.0,9.996e-05,2]
[343633935,1732764646167,-500.0,9.996e-05,2]
[343633936,1732764646177,-500.0,9.996e-05,2]
[343633937,1732764646188,-500.0,9.996e-05,2]
[343633938,1732764646198,-793.38,9.996e-05,2]
[343633939,1732764646207,-500.0,9.996e-05,2]
[343633940,1732764646216,-500.0,9.996e-05,2]
[343633941,1732764646225,-500.0,9.996e-05,2]
[343633942,1732764646235,-500.0,9.996e-05,2]
[343633943,1732764646245,-500.0,9.996e-05,2]
[343633944,1732764646254,-500.0,9.996e-05,2]
[343633945,1732764646263,-541.97877966,9.996e-05,2]
[343633946,1732764646273,-500.0,9.996e-05,2]
[343633947,1732764646282,-500.0,9.996e-05,2]
[343633948,1732764646295,-592.53,9.996e-05,2]
[343633949,1732764646304,-500.0,9.996e-05,2]
[343633950,1732764646314,-591.07,9.996e-05,2]
[343633951,1732764646323,-500.0,9.996e-05,2]
[343633952,1732764646332,-595.55269609,9.996e-05,2]
[343633953,1732764646341,-500.0,9.996e-05,2]
[343633954,1732764646351,-208.4,9.996e-05,2]
[343633955,1732764646360,-500.0,9.996e-05,2]
[343633956,1732764646369,-500.0,9.996e-05,2]
[343633957,1732764646378,-500.0,9.996e-05,2]
[343633958,1732764646387,-500.0,9.996e-05,2]
[343633959,1732764646397,-477.01160009,9.996e-05,2]
[343633960,1732764646406,-500.0,9.996e-05,2]
[343633961,1732764646415,-500.0,9.996e-05,2]
[343633962,1732764646424,-1156.85,9.996e-05,2]
[343633963,1732764646434,-500.0,9.996e-05,2]
[343633964,1732764646443,-866.26,9.996e-05,2]
[343633965,1732764646452,-935.98,9.996e-05,2]
[343633966,1732764646462,-500.0,9.996e-05,2]
[343633967,1732764646471,-500.0,9.996e-05,2]
[343633968,1732764646481,-500.0,9.996e-05,2]
[343633969,1732764646490,-500.0,9.996e-05,2]
[343633970,1732764646499,-500.0,9.996e-05,2]
[343633971,1732764646509,-201.58103805,9.996e-05,2]
[343633972,1732764646518,-567.47,9.996e-05,2]
[343633973,1732764646527,-500.0,9.996e-05,2]
[343633974,1732764646538,-500.0,9.996e-05,2]
[343633975,1732764646547,-500.0,9.996e-05,2]
[343633976,1732764646557,-178.44679986,9.996e-05,2]
[343633977,1732764646567,-958.52,9.996e-05,2]
[343633978,1732764646579,-888.28,9.996e-05,2]
[343633979,1732764646588,-777.53,9.996e-05,2]
[343633980,1732764646598,-500.0,9.996e-05,2]
[343633981,1732764646608,-500.0,9.996e-05,2]
[343633982,1732764646617,-500.0,9.996e-05,2]
[343633983,1732764646627,-500.0,9.996e-05,2]
[343633984,1732764646636,-500.0,9.996e-05,2]
[343633985,1732764646646,-518.98,9.996e-05,2]
[343633986,1732764646656,-500.0,9.996e-05,2]
[343633987,1732764646665,-500.0,9.996e-05,2]
[343633988,1732764646674,-1052.23,9.996e-05,2]
[343633989,1732764646684,-500.0,9.996e-05,2]
[343633990,1732764646694,-857.17,9.996e-05,2]
[343633991,1732764646704,-496.93729241,9.996e-05,2]
[343633992,1732764646713,-500.0,9.996e-05,2]
[343633993,1732764646723,-644.51,9.996e-05,2]
[343633994,1732764646732,-500.0,9.996e-05,2]
[343633995,1732764646742,-210.195,9.997e-05,2]
[343633996,1732764646751,-500.0,9.997e-05,2]
[343633997,1732764646761,-500.0,9.997e-05,2]
[343633998,1732764646771,-500.0,9.997e-05,2]
[343633999,1732764646780,-1110.86,9.997e-05,2]
[343634000,1732764646793,-500.0,9.997e-05,2]
[343634001,1732764646804,-500.0,9.997e-05,2]
[343634002,1732764646813,-500.0,9.997e-05,2]
[343634003,1732764646823,-500.0,9.997e-05,2]
[343634004,1732764646832,-529.85170205,9.997e-05,2]
[343634005,1732764646842,-500.0,9.997e-05,2]
[343634006,1732764646851,-500.0,9.997e-05,2]
[343634007,1732764646861,-500.0,9.997e-05,2]
[343634008,1732764646870,-500.0,9.997e-05,2]
[343634009,1732764646880,-407.85,9.997e-05,2]
[343634010,1732764646890,-1043.63,9.997e-05,2]
[343634011,1732764646899,-543.28165376,9.997e-05,2]
[343634012,1732764646910,-500.0,9.997e-05,2]
[343634013,1732764646920,-500.0,9.997e-05,2]
[343634014,1732764646929,-199.64,9.997e-05,2]
[343634015,1732764646939,-500.0,9.997e-05,2]
[343634016,1732764646949,-500.0,9.997e-05,2]
[343634017,1732764646959,-500.0,9.997e-05,2]
[343634018,1732764646969,-500.0,9.997e-05,2]